fUSD/lending_fUSD_20250703
["ID","MTS","AMOUNT","RATE_DAILY","PERIOD"]
[369470191,1751586654038,-775.87,0.00022027,2]
[369470192,1751586654051,-566.52,0.00022027,2]
[369470193,1751586654061,-151.0,0.00022027,7]
[369470194,1751586654070,-460.0,0.00022027,2]
[369470195,1751586654079,-550.0,0.00022027,2]
[369470196,1751586654090,-316.81365107,0.00022027,2]
[369470197,1751586654100,-235.71900168,0.00022027,2]
[369470198,1751586654110,-460.0,0.00022027,2]
[369470199,1751586654119,-460.0,0.00022027,2]
[369470200,1751586654129,-151.0,0.00022027,7]
[369470201,1751586654138,-159.04226287,0.00022027,2]
[369470202,1751586654147,-460.0,0.00022027,2]
[369470203,1751586654156,-460.0,0.00022027,2]
[369470204,1751586654166,-460.0,0.00022027,2]
[369470205,1751586654179,-535.32,0.00022027,2]
[369470206,1751586654188,-580.24,0.00022027,2]
[369470207,1751586654198,-460.0,0.00022027,2]
[369470208,1751586654207,-1013.99,0.00022027,2]
[369470209,1751586654217,-1065.03,0.00022027,2]
[369470210,1751586654226,-460.0,0.00022027,2]
[369470211,1751586654236,-810.75,0.00022027,2]
[369470212,1751586654246,-1759.43,0.00022027,2]
[369470213,1751586654255,-460.0,0.00022027,2]
[369470214,1751586654264,-460.0,0.00022027,2]
[369470215,1751586654274,-612.52,0.00022027,2]
[369470216,1751586654284,-481.08,0.00022027,2]
[369470217,1751586654293,-460.0,0.00022027,2]
[369470218,1751586654303,-771.71,0.00022027,2]
[369470219,1751586654312,-151.0,0.00022027,7]
[369470220,1751586654322,-807.54,0.00022027,2]
[369470221,1751586654332,-1564.58,0.00022027,2]
[369470222,1751586654342,-592.6,0.00022027,2]
[369470223,1751586654351,-151.0,0.00022027,7]
[369470224,1751586654360,-151.0,0.00022027,7]
[369470225,1751586654370,-151.0,0.00022027,7]
[369470226,1751586654379,-460.0,0.00022027,2]
[369470227,1751586654389,-460.0,0.00022027,2]
[369470228,1751586654398,-151.0,0.00022027,7]
[369470229,1751586654407,-460.0,0.00022027,2]
[369470230,1751586654417,-460.0,0.00022027,2]
[369470231,1751586654426,-460.0,0.00022027,2]
[369470232,1751586654773,-534.52,0.00022027,2]
[369470233,1751586654783,-976.09,0.00022027,2]
[369470234,1751586654793,-706.96,0.00022027,2]
[369470235,1751586654802,-460.0,0.00022027,2]
[369470236,1751586654812,-151.0,0.00022027,7]
[369470237,1751586654822,-460.0,0.00022027,2]
[369470238,1751586654832,-460.0,0.00022027,2]
[369470239,1751586654842,-460.0,0.00022027,2]
[369470240,1751586654852,-934.37,0.00022027,2]
[369470241,1751586654862,-151.0,0.00022027,7]
[369470242,1751586654871,-1434.26,0.00022027,2]
[369470243,1751586654881,-460.0,0.00022027,2]
[369470244,1751586654891,-151.0,0.00022027,7]
[369470245,1751586654901,-460.0,0.00022027,2]
[369470246,1751586654910,-460.0,0.00022027,2]
[369470247,1751586654923,-460.0,0.00022027,2]
[369470248,1751586654937,-460.0,0.00022027,2]
[369470249,1751586654948,-1198.27,0.00022027,2]
[369470250,1751586654958,-460.0,0.00022027,2]
[369470251,1751586654968,-1621.55,0.00022027,2]
[369470252,1751586654978,-460.0,0.00022027,2]
[369470253,1751586654988,-777.87,0.00022027,2]
[369470254,1751586654997,-460.0,0.00022027,2]
[369470255,1751586655007,-460.0,0.00022027,2]
[369470256,1751586655017,-863.65,0.00022027,2]
[369470257,1751586655027,-460.0,0.00022027,2]
[369470258,1751586655037,-460.0,0.00022027,2]
[369470259,1751586655047,-460.0,0.00022027,2]
[369470260,1751586655056,-1114.18,0.00022027,2]
[369470261,1751586655066,-460.0,0.00022027,2]
[369470262,1751586655076,-1266.94,0.00022027,2]
[369470263,1751586655087,-460.0,0.00022027,2]
[369470264,1751586655096,-1018.83,0.00022027,2]
[369470265,1751586655106,-460.0,0.00022027,2]
[369470266,1751586655115,-460.0,0.00022027,2]
[369470267,1751586655126,-1626.9,0.00022027,2]
[369470268,1751586655137,-1244.09,0.00022027,2]
[369470269,1751586655147,-460.0,0.00022027,2]
[369470270,1751586655156,-522.88042106,0.00022027,2]
[369470271,1751586655167,-460.0,0.00022027,2]
[369470272,1751586655178,-460.0,0.00022027,2]
[369470273,1751586655188,-563.15,0.00022027,2]
[369470274,1751586655198,-460.0,0.00022027,2]
[369470275,1751586655208,-460.0,0.00022027,2]
[369470276,1751586655218,-460.0,0.00022027,2]
[369470277,1751586655227,-460.0,0.00022027,2]
[369470278,1751586655237,-1562.54,0.00022027,2]
[369470279,1751586655249,-744.77,0.00022027,2]
[369470280,1751586655261,-460.0,0.00022027,2]
[369470281,1751586655271,-460.0,0.00022027,2]
[369470282,1751586655281,-460.0,0.00022027,2]
[369470283,1751586655291,-490.0,0.00022027,2]
[369470284,1751586655301,-460.0,0.00022027,2]
[369470285,1751586655312,-460.0,0.00022027,2]
[369470286,1751586655323,-1483.36,0.00022027,2]
[369470287,1751586655335,-460.0,0.00022027,2]
[369470288,1751586655345,-460.0,0.00022027,2]
[369470289,1751586655356,-460.0,0.00022027,2]
[369470290,1751586655366,-460.0,0.00022027,2]
[369470291,1751586655375,-460.0,0.00022027,2]
[369470292,1751586655384,-460.0,0.00022027,2]
[369470293,1751586655394,-460.0,0.00022027,2]
[369470294,1751586655403,-460.0,0.00022027,2]
[369470295,1751586655412,-236.08123957,0.00022027,2]
[369470296,1751586655422,-460.0,0.00022027,2]
[369470297,1751586655431,-460.0,0.00022027,2]
[369470298,1751586655441,-651.15,0.00022027,2]
[369470299,1751586655451,-639.06,0.00022027,2]
[369470300,1751586655460,-479.89,0.00022027,2]
[369470301,1751586655470,-1051.91,0.00022027,2]
[369470302,1751586655479,-937.69,0.00022027,2]
[369470303,1751586655489,-1078.38,0.00022027,2]
[369470304,1751586655499,-1413.73,0.00022027,2]
[369470305,1751586655508,-460.0,0.00022027,2]
[369470306,1751586655518,-629.14,0.00022027,2]
[369470307,1751586655527,-460.0,0.00022027,2]
[369470308,1751586655537,-874.05,0.00022027,2]
[369470309,1751586655547,-1300.81,0.00022027,2]
[369470310,1751586655556,-587.12215806,0.00022027,2]
[369470311,1751586655565,-460.0,0.00022027,2]
[369470312,1751586655574,-552.43,0.00022027,2]
[369470313,1751586655584,-1525.47,0.00022027,2]
[369470314,1751586655593,-549.04756997,0.00022027,2]
[369470315,1751586655602,-460.0,0.00022027,2]
[369470316,1751586655613,-1667.28,0.00022027,2]
[369470317,1751586655622,-460.0,0.00022027,2]
[369470318,1751586655632,-853.25,0.00022027,2]
[369470319,1751586655642,-460.0,0.00022027,2]
[369470320,1751586655651,-460.0,0.00022027,2]
[369470321,1751586655660,-911.32,0.00022027,2]
[369470322,1751586655670,-1339.64,0.00022027,2]
[369470323,1751586655679,-1027.01,0.00022027,2]
[369470324,1751586655688,-460.0,0.00022027,2]
[369470325,1751586655697,-460.0,0.00022027,2]
[369470326,1751586655706,-904.09,0.00022027,2]
[369470327,1751586655717,-460.0,0.00022027,2]
[369470328,1751586655728,-1727.01,0.00022027,2]
[369470329,1751586655739,-460.0,0.00022027,2]
[369470330,1751586655748,-460.0,0.00022027,2]
[369470331,1751586655757,-640.33,0.00022027,2]
[369470332,1751586655767,-1435.27,0.00022027,2]
[369470333,1751586655777,-1320.29,0.00022027,2]
[369470334,1751586655788,-528.35,0.00022027,2]
[369470335,1751586655798,-182.163638,0.00022027,7]
[369470336,1751586655807,-460.0,0.00022027,2]
[369470337,1751586655818,-460.0,0.00022027,2]
[369470338,1751586655829,-460.0,0.00022027,2]
[369470339,1751586655839,-460.0,0.00022027,2]
[369470340,1751586655849,-460.0,0.00022027,2]
[369470341,1751586655859,-1176.92,0.00022027,2]
[369470342,1751586655869,-151.0,0.00022027,7]
[369470343,1751586655878,-876.18,0.00022027,2]
[369470344,1751586655887,-460.0,0.00022027,2]
[369470345,1751586655897,-1169.61,0.00022027,2]
[369470346,1751586655906,-460.0,0.00022027,2]
[369470347,1751586655916,-664.13,0.00022027,2]
[369470348,1751586655925,-151.0,0.00022027,7]
[369470349,1751586655935,-460.0,0.00022027,2]
[369470350,1751586655944,-575.11,0.00022027,2]
[369470351,1751586655953,-460.0,0.00022027,2]
[369470352,1751586655962,-1008.32,0.00022027,2]
[369470353,1751586655972,-513.68,0.00022027,2]
[369470354,1751586655981,-460.0,0.00022027,2]
[369470355,1751586655991,-460.0,0.00022027,2]
[369470356,1751586656000,-433.0,0.00022027,2]
[369470357,1751586656009,-669.69,0.00022027,2]
[369470358,1751586656019,-490.0,0.00022027,2]
[369470359,1751586656029,-466.16,0.00022027,2]
[369470360,1751586656038,-605.71,0.00022027,2]
[369470361,1751586656048,-460.0,0.00022027,2]
[369470362,1751586656058,-460.0,0.00022027,2]
[369470363,1751586656067,-490.0,0.00022027,2]
[369470364,1751586656077,-587.58,0.00022027,2]
[369470365,1751586656087,-460.0,0.00022027,2]
[369470366,1751586656096,-460.0,0.00022027,2]
[369470367,1751586656107,-460.0,0.00022027,2]
[369470368,1751586656118,-1680.4,0.00022027,2]
[369470369,1751586656129,-460.0,0.00022027,2]
[369470370,1751586656138,-666.62,0.00022027,2]
[369470371,1751586656149,-801.67,0.00022027,2]
[369470372,1751586656159,-372.846254,0.00022027,7]
[369470373,1751586656171,-460.0,0.00022027,2]
[369470374,1751586656183,-1450.95,0.00022027,2]
[369470375,1751586656192,-961.39,0.00022027,2]
[369470376,1751586656204,-372.846254,0.00022027,7]
[369470377,1751586656214,-460.0,0.00022027,2]
[369470378,1751586656225,-460.0,0.00022027,2]
[369470379,1751586656235,-494.58010545,0.00022027,2]
[369470380,1751586656246,-1780.02,0.00022027,2]
[369470381,1751586656256,-614.18,0.00022027,2]
[369470382,1751586656266,-460.0,0.00022027,2]
[369470383,1751586656275,-460.0,0.00022027,2]
[369470384,1751586656285,-460.0,0.00022027,2]
[369470385,1751586656295,-834.19,0.00022027,2]
[369470386,1751586656304,-1328.08,0.00022027,2]
[369470387,1751586656314,-460.0,0.00022027,2]
[369470388,1751586656323,-460.0,0.00022027,2]
[369470389,1751586656334,-731.46,0.00022027,2]
[369470390,1751586656345,-151.0,0.00022027,7]
[369470391,1751586656355,-1476.94,0.00022027,2]
[369470392,1751586656364,-682.55,0.00022027,2]
[369470393,1751586656374,-460.0,0.00022027,2]
[369470394,1751586656383,-460.0,0.00022027,2]
[369470395,1751586656393,-462.76,0.00022027,2]
[369470396,1751586656402,-460.0,0.00022027,2]
[369470397,1751586656412,-460.0,0.00022027,2]
[369470398,1751586656421,-460.0,0.00022027,2]
[369470399,1751586656431,-460.0,0.00022027,2]
[369470400,1751586656440,-490.0,0.00022027,2]
[369470401,1751586656450,-460.0,0.00022027,2]
[369470402,1751586656459,-1715.2,0.00022027,2]
[369470403,1751586656469,-425.911246,0.00022027,7]
[369470404,1751586656478,-603.22,0.00022027,2]
[369470405,1751586656488,-460.0,0.00022027,2]
[369470406,1751586656497,-2025.34,0.00022027,2]
[369470407,1751586656507,-666.49,0.00022027,2]
[369470408,1751586656518,-425.911246,0.00022027,7]
[369470409,1751586656528,-1003.47,0.00022027,2]
[369470410,1751586656538,-460.0,0.00022027,2]
[369470411,1751586656547,-1334.57,0.00022027,2]
[369470412,1751586656556,-240.0,0.00022027,2]
[369470413,1751586656566,-1068.97,0.00022027,2]
[369470414,1751586656576,-490.0,0.00022027,2]
[369470415,1751586656585,-502.95,0.00022027,2]
[369470416,1751586656594,-697.71,0.00022027,2]
[369470417,1751586656603,-151.0,0.00022027,7]
[369470418,1751586656613,-460.0,0.00022027,2]
[369470419,1751586656622,-460.0,0.00022027,2]
[369470420,1751586656631,-2262.83,0.00022027,2]
[369470421,1751586656640,-1732.37,0.00022027,2]
[369470422,1751586656650,-460.0,0.00022027,2]
[369470423,1751586656659,-460.0,0.00022027,2]
[369470424,1751586656668,-1459.92,0.00022027,2]
[369470425,1751586656677,-1572.76,0.00022027,2]
[369470426,1751586656687,-520.0,0.00022027,2]
[369470427,1751586656696,-1035.62,0.00022027,2]
[369470428,1751586656705,-460.0,0.00022027,2]
[369470429,1751586656715,-520.0,0.00022027,2]
[369470430,1751586656724,-460.0,0.00022027,2]
[369470431,1751586656734,-594.43,0.00022027,2]
[369470432,1751586656743,-543.95,0.00022027,2]
[369470433,1751586656752,-151.0,0.00022027,7]
[369470434,1751586656762,-151.0,0.00022027,7]
[369470435,1751586656772,-460.0,0.00022027,2]
[369470436,1751586656781,-460.0,0.00022027,2]
[369470437,1751586656791,-460.0,0.00022027,2]
[369470438,1751586656800,-1333.77,0.00022027,2]
[369470439,1751586656809,-460.0,0.00022027,2]
[369470440,1751586656819,-1245.08,0.00022027,2]
[369470441,1751586656828,-460.0,0.00022027,2]
[369470442,1751586656838,-528.09,0.00022027,2]
[369470443,1751586656848,-612.080439,0.00022027,7]
[369470444,1751586656858,-1507.981706,0.00022027,7]
[369470445,1751586656867,-848.6,0.00022027,2]
[369470446,1751586656876,-1507.981706,0.00022027,7]
[369470447,1751586656886,-460.0,0.00022027,2]
[369470448,1751586656896,-460.0,0.00022027,2]
[369470449,1751586656906,-612.080439,0.00022027,7]
[369470450,1751586656916,-460.0,0.00022027,2]
[369470451,1751586656926,-1732.92,0.00022027,2]
[369470452,1751586656935,-387.99,0.00022027,2]
[369470453,1751586656945,-460.0,0.00022027,2]
[369470454,1751586656955,-1104.52,0.00022027,2]
[369470455,1751586656964,-151.0,0.00022027,7]
[369470456,1751586656974,-460.0,0.00022027,2]
[369470457,1751586656983,-460.0,0.00022027,2]
[369470458,1751586656993,-1106.42,0.00022027,2]
[369470459,1751586657002,-469.77,0.00022027,2]
[369470460,1751586657012,-1893.21,0.00022027,2]
[369470461,1751586657022,-460.0,0.00022027,2]
[369470462,1751586657031,-151.0,0.00022027,7]
[369470463,1751586657041,-1438.6,0.00022027,2]
[369470464,1751586657051,-460.0,0.00022027,2]
[369470465,1751586657060,-616.75,0.00022027,2]
[369470466,1751586657069,-460.0,0.00022027,2]
[369470467,1751586657079,-505.02,0.00022027,2]
[369470468,1751586657089,-460.0,0.00022027,2]
[369470469,1751586657099,-926.36,0.00022027,2]
[369470470,1751586657108,-1541.9,0.00022027,2]
[369470471,1751586657120,-460.0,0.00022027,2]
[369470472,1751586657129,-460.0,0.00022027,2]
[369470473,1751586657139,-1062.4,0.00022027,2]
[369470474,1751586657251,-1043.21,0.00022027,2]
[369470475,1751586657261,-460.0,0.00022027,2]
[369470476,1751586657270,-460.0,0.00022027,2]
[369470477,1751586657279,-460.0,0.00022027,2]
[369470478,1751586657288,-1226.71,0.00022027,2]
[369470479,1751586657297,-460.0,0.00022027,2]
[369470480,1751586657307,-460.0,0.00022027,2]
[369470481,1751586657316,-460.0,0.00022027,2]
[369470482,1751586657325,-460.0,0.00022027,2]
[369470483,1751586657335,-151.0,0.00022027,7]
[369470484,1751586657345,-460.0,0.00022027,2]
[369470485,1751586657354,-460.0,0.00022027,2]
[369470486,1751586657364,-460.0,0.00022027,2]
[369470487,1751586657373,-831.59,0.00022027,2]
[369470488,1751586657385,-1471.44,0.00022027,2]
[369470489,1751586657395,-151.0,0.00022027,7]
[369470490,1751586657405,-151.0,0.00022027,7]
[369470491,1751586657415,-735.85,0.00022027,2]
[369470492,1751586657424,-460.0,0.00022027,2]
[369470493,1751586657434,-860.59,0.00022027,2]
[369470494,1751586657445,-460.0,0.00022027,2]
[369470495,1751586657454,-948.71,0.00022027,2]
[369470496,1751586657465,-460.0,0.00022027,2]
[369470497,1751586657475,-460.0,0.00022027,2]
[369470498,1751586657486,-972.14,0.00022027,2]
[369470499,1751586657495,-460.0,0.00022027,2]
[369470500,1751586657505,-467.13,0.00022027,2]
[369470501,1751586657516,-555.62,0.00022027,2]
[369470502,1751586657525,-893.82,0.00022027,2]
[369470503,1751586657537,-150.0,0.00022027,2]
[369470504,1751586657546,-1186.2,0.00022027,2]
[369470505,1751586657555,-1227.02,0.00022027,2]
[369470506,1751586657566,-520.0,0.00022027,2]
[369470507,1751586657575,-1184.59,0.00022027,2]
[369470508,1751586657585,-696.69,0.00022027,2]
[369470509,1751586657595,-460.0,0.00022027,2]
[369470510,1751586657604,-460.0,0.00022027,2]
[369470511,1751586657613,-460.0,0.00022027,2]
[369470512,1751586657622,-151.0,0.00022027,7]
[369470513,1751586657632,-160.456799,0.00022027,7]
[369470514,1751586657641,-151.0,0.00022027,7]
[369470515,1751586657650,-460.0,0.00022027,2]
[369470516,1751586657659,-151.0,0.00022027,7]
[369470517,1751586657668,-460.0,0.00022027,2]
[369470518,1751586657679,-460.0,0.00022027,2]
[369470519,1751586657690,-765.32,0.00022027,2]
[369470520,1751586657699,-460.0,0.00022027,2]
[369470521,1751586657708,-462.75773272,0.00022027,2]
[369470522,1751586657718,-460.0,0.00022027,2]
[369470523,1751586657728,-157.364976,0.00022027,7]
[369470524,1751586657737,-450.586626,0.00022027,7]
[369470525,1751586657747,-577.77,0.00022027,2]
[369470526,1751586657757,-450.586626,0.00022027,7]
[369470527,1751586657766,-884.06,0.00022027,2]
[369470528,1751586657775,-460.0,0.00022027,2]
[369470529,1751586657785,-460.0,0.00022027,2]
[369470530,1751586657795,-762.62,0.00022027,2]
[369470531,1751586657805,-157.364976,0.00022027,7]
[369470532,1751586657814,-450.586626,0.00022027,7]
[369470533,1751586657823,-450.586626,0.00022027,7]
[369470534,1751586657832,-460.0,0.00022027,2]
[369470535,1751586657842,-460.0,0.00022027,2]
[369470536,1751586657852,-460.0,0.00022027,2]
[369470537,1751586657861,-514.45,0.00022027,2]
[369470538,1751586657870,-460.0,0.00022027,2]
[369470539,1751586657879,-2308.44,0.00022027,2]
[369470540,1751586657891,-460.0,0.00022027,2]
[369470541,1751586657900,-1159.48,0.00022027,2]
[369470542,1751586657910,-619.51,0.00022027,2]
[369470543,1751586657919,-460.0,0.00022027,2]
[369470544,1751586657929,-1768.78,0.00022027,2]
[369470545,1751586657939,-151.0,0.00022027,7]
[369470546,1751586657948,-151.0,0.00022027,7]
[369470547,1751586657958,-151.0,0.00022027,7]
[369470548,1751586657968,-460.0,0.00022027,2]
[369470549,1751586657978,-151.0,0.00022027,7]
[369470550,1751586657987,-460.0,0.00022027,2]
[369470551,1751586657996,-460.0,0.00022027,2]
[369470552,1751586658006,-460.0,0.00022027,2]
[369470553,1751586658017,-972.52,0.00022027,2]
[369470554,1751586658028,-151.0,0.00022027,7]
[369470555,1751586658038,-460.0,0.00022027,2]
[369470556,1751586658047,-151.0,0.00022027,7]
[369470557,1751586658057,-151.0,0.00022027,7]
[369470558,1751586658067,-151.0,0.00022027,7]
[369470559,1751586658077,-2502.62,0.00022027,2]
[369470560,1751586658087,-532.79,0.00022027,2]
[369470561,1751586658097,-460.0,0.00022027,2]
[369470562,1751586658108,-776.59,0.00022027,2]
[369470563,1751586658118,-664.68,0.00022027,2]
[369470564,1751586658127,-5611.97,0.00022027,2]
[369470565,1751586658136,-460.0,0.00022027,2]
[369470566,1751586658146,-527.01,0.00022027,2]
[369470567,1751586658156,-1524.01,0.00022027,2]
[369470568,1751586658165,-460.0,0.00022027,2]
[369470569,1751586658177,-609.99,0.00022027,2]
[369470570,1751586658186,-169.74,0.00022027,2]
[369470571,1751586658195,-1296.33,0.00022027,2]
[369470572,1751586658204,-151.0,0.00022027,7]
[369470573,1751586658213,-955.25,0.00022027,2]
[369470574,1751586658223,-151.0,0.00022027,7]
[369470575,1751586658232,-460.0,0.00022027,2]
[369470576,1751586658241,-460.0,0.00022027,2]
[369470577,1751586658250,-520.0,0.00022027,2]
[369470578,1751586658259,-667.82,0.00022027,2]
[369470579,1751586658269,-1386.25,0.00022027,2]
[369470580,1751586658279,-460.0,0.00022027,2]
[369470581,1751586658291,-1694.04,0.00022027,2]
[369470582,1751586658300,-119290.18,0.00022027,2]
[369470583,1751586658310,-460.0,0.00022027,2]
[369470584,1751586658319,-460.0,0.00022027,2]
[369470585,1751586658328,-460.0,0.00022027,2]
[369470586,1751586658337,-151.0,0.00022027,7]
[369470587,1751586658346,-151.0,0.00022027,7]
[369470588,1751586658356,-1597.34,0.00022027,2]
[369470589,1751586658365,-635.08,0.00022027,2]
[369470590,1751586658374,-460.0,0.00022027,2]
[369470591,1751586658384,-460.0,0.00022027,2]
[369470592,1751586658394,-460.0,0.00022027,2]
[369470593,1751586658403,-1470.68,0.00022027,2]
[369470594,1751586658413,-460.0,0.00022027,2]
[369470595,1751586658424,-1849.07,0.00022027,2]
[369470596,1751586658433,-642.44,0.00022027,2]
[369470597,1751586658443,-2524.91,0.00022027,2]
[369470598,1751586658454,-460.0,0.00022027,2]
[369470599,1751586658462,-1275.12,0.00022027,2]
[369470600,1751586658471,-1304.31,0.00022027,2]
[369470601,1751586658480,-460.0,0.00022027,2]
[369470602,1751586658489,-4992.42,0.00022027,2]
[369470603,1751586658498,-1347.2,0.00022027,2]
[369470604,1751586658509,-659.63,0.00022027,2]
[369470605,1751586658518,-152.292379,0.00022027,7]
[369470606,1751586658527,-460.0,0.00022027,2]
[369470607,1751586658538,-1612.21,0.00022027,2]
[369470608,1751586658548,-2024.62,0.00022027,2]
[369470609,1751586658557,-1196.1,0.00022027,2]
[369470610,1751586658566,-1753.16,0.00022027,2]
[369470611,1751586658575,-2027.62,0.00022027,2]
[369470612,1751586658584,-460.0,0.00022027,2]
[369470613,1751586658594,-460.0,0.00022027,2]
[369470614,1751586658603,-982.85,0.00022027,2]
[369470615,1751586658612,-460.0,0.00022027,2]
[369470616,1751586658622,-560.0,0.00022027,2]
[369470617,1751586658631,-733.08,0.00022027,2]
[369470618,1751586658640,-460.0,0.00022027,2]
[369470619,1751586658650,-151.0,0.00022027,7]
[369470620,1751586658660,-1172.04,0.00022027,2]
[369470621,1751586658671,-151.0,0.00022027,7]
[369470622,1751586658681,-736.35,0.00022027,2]
[369470623,1751586658691,-460.0,0.00022027,2]
[369470624,1751586658701,-1552.46,0.00022027,2]
[369470625,1751586658711,-950.91,0.00022027,2]
[369470626,1751586658721,-830.45,0.00022027,2]
[369470627,1751586658731,-460.0,0.00022027,2]
[369470628,1751586658741,-838.82,0.00022027,2]
[369470629,1751586658751,-1341.88,0.00022027,2]
[369470630,1751586658760,-460.0,0.00022027,2]
[369470631,1751586658769,-972.51,0.00022027,2]
[369470632,1751586658778,-731.42,0.00022027,2]
[369470633,1751586658787,-151.0,0.00022027,7]
[369470634,1751586658796,-151.0,0.00022027,7]
[369470635,1751586658806,-460.0,0.00022027,2]
[369470636,1751586658815,-595.3,0.00022027,2]
[369470637,1751586658824,-565.93,0.00022027,2]
[369470638,1751586658833,-1896.45,0.00022027,2]
[369470639,1751586658843,-733.9,0.00022027,2]
[369470640,1751586658852,-1197.91,0.00022027,2]
[369470641,1751586658862,-520.0,0.00022027,2]
[369470642,1751586658871,-151.0,0.00022027,7]
[369470643,1751586658881,-367.171785,0.00022027,7]
[369470644,1751586658890,-151.0,0.00022027,7]
[369470645,1751586658901,-699.03,0.00022027,2]
[369470646,1751586658911,-367.171785,0.00022027,7]
[369470647,1751586658921,-460.0,0.00022027,2]
[369470648,1751586658930,-857.93,0.00022027,2]
[369470649,1751586658940,-126.2629223,0.00022027,7]
[369470650,1751586659578,-240.9088627,0.00022027,7]
[369470651,1751586659587,-460.0,0.00022027,2]
[369470652,1751586659596,-367.171785,0.00022027,7]
[369470653,1751586659606,-787.61,0.00022027,2]
[369470654,1751586659615,-151.0,0.00022027,7]
[369470655,1751586659624,-151.0,0.00022027,7]
[369470656,1751586659633,-460.0,0.00022027,2]
[369470657,1751586659642,-1656.25585396,0.00022027,2]
[369470658,1751586659654,-126.67414604,0.00022027,2]
[369470659,1751586659663,-807.41,0.00022027,2]
[369470660,1751586659672,-1074.43,0.00022027,2]
[369470661,1751586659681,-460.0,0.00022027,2]
[369470662,1751586659691,-724.76,0.00022027,2]
[369470663,1751586659700,-1647.31,0.00022027,2]
[369470664,1751586659709,-2964.63,0.00022027,2]
[369470665,1751586659718,-951.74,0.00022027,2]
[369470666,1751586659727,-460.0,0.00022027,2]
[369470667,1751586659736,-584.3,0.00022027,2]
[369470668,1751586659746,-490.0,0.00022027,2]
[369470669,1751586659755,-51.60446223,0.00022027,2]
[369470670,1751586660757,-460.0,0.00021917,2]
[369470671,1751586660768,-605.53,0.00021917,2]
[369470672,1751586660778,-460.0,0.00021917,2]
[369470673,1751586660788,-1000.05,0.00021917,2]
[369470674,1751586660798,-460.0,0.00021917,2]
[369470675,1751586660807,-283.34227194,0.00021917,2]
[369470676,1751586661261,-500.0,0.00021916,2]
[369470677,1751586661271,-169.000001,0.00021917,2]
[369470678,1751586661316,-500.0,0.00021916,2]
[369470679,1751586661326,-500.0,0.00021916,2]
[369470680,1751586661336,-500.0,0.00021916,2]
[369470681,1751586661349,-138.50772706,0.00021917,2]
[369470682,1751586661359,-460.0,0.00021917,2]
[369470683,1751586661368,-830.24,0.00021917,2]
[369470684,1751586661378,-460.0,0.00021917,2]
[369470685,1751586661388,-460.0,0.00021917,2]
[369470686,1751586661399,-460.0,0.00021917,2]
[369470687,1751586661409,-408.39553777,0.00022027,2]
[369470688,1751586661419,-570.13873517,0.00022027,2]
[369470689,1751586846286,-300.0,0.00019943,2]
[369470690,1751586846309,-5700.0,0.00019944,2]